bitfinex-derivatives/quotes_SOLF0:USTF0_20250818
["timestamp","ask_amount","ask_price","bid_price","bid_amount"]
[1755482780597,366.45481457,186.3,186.09,10.14133728]
[1755482780789,2.94,186.23,186.21,2.93]
[1755482780991,2.94,186.23,186.14,2.93]
[1755482781197,2.94,186.21,186.14,2.93]
[1755482781498,2.94,186.23,186.14,2.93]
[1755482782498,25.39,186.32,186.16,2.93]
[1755482782499,2.94,186.28,186.16,2.93]
[1755482782792,2.94,186.31,186.16,2.93]
[1755482783190,2.94,186.31,186.26,5.3653]
[1755482783389,2.94,186.3,186.27,2.93]
[1755482783590,2.94,186.31,186.24,2.93]
[1755482784189,25.39,186.32,186.27,5.365]
[1755482784397,28.33,186.32,186.28,2.93]
[1755482784699,25.39,186.32,186.2,2.93]
[1755482784894,25.39,186.32,186.31,2.93]
[1755482785389,2.94,186.31,186.24,2.93]
[1755482785892,25.39,186.32,186.24,2.93]
[1755482785893,2.94,186.29,186.24,2.93]
[1755482786195,2.94,186.27,186.25,2.93]
[1755482786397,8.3043,186.3,186.26,2.93]
[1755482786596,2.94,186.31,186.29,2.93]
[1755482786801,25.39,186.32,186.19,2.93]
[1755482786988,25.39,186.32,186.3,5.3641]
[1755482787193,25.39,186.32,186.31,2.93]
[1755482787695,25.39,186.32,186.31,8.294]
[1755482787887,25.39,186.32,186.31,2.93]
[1755482788084,25.39,186.32,186.26,2.93]
[1755482788288,2.94,186.31,186.19,62.0]
[1755482788486,2.94,186.31,186.28,2.93]
[1755482788894,25.39,186.32,186.2,2.93]
[1755482789088,25.39,186.32,186.22,9.20645656]
[1755482789296,25.39,186.32,186.26,2.93]
[1755482789690,25.39,186.32,186.28,5.3647]
[1755482789893,25.39,186.32,186.23,2.93]
[1755482790396,2.94,186.3,186.28,2.93]
[1755482790789,2.94,186.29,186.27,8.2951]
[1755482790986,28.33,186.32,186.29,2.93]
[1755482791384,2.94,186.31,186.29,2.93]
[1755482791790,2.94,186.3,186.19,71.20645656]
[1755482792089,2.94,186.3,186.27,2.93]
[1755482792490,2.94,186.3,186.27,5.3651]
[1755482792692,2.94,186.3,186.19,71.20645656]
[1755482792693,28.33,186.32,186.2,2.93]
[1755482793296,2.94,186.31,186.21,140.26]
[1755482793600,2.94,186.31,186.22,2.93]
[1755482794501,2.94,186.31,186.26,5.3652]
[1755482794703,2.94,186.3,186.27,2.93]
[1755482795305,2.94,186.3,186.28,2.93]
[1755482796203,2.94,186.31,186.29,2.93]
[1755482796395,2.94,186.31,186.21,140.26]
[1755482796396,2.94,186.31,186.28,5.3647]
[1755482796592,2.94,186.31,186.3,2.93]
[1755482796796,25.39,186.32,186.3,2.93]
[1755482796998,25.39,186.32,186.29,5.3644]
[1755482797292,25.39,186.32,186.31,2.93]
[1755482798208,28.33,186.32,186.31,2.93]
[1755482798700,25.39,186.32,186.28,5.3648]
[1755482798904,2.94,186.3,186.27,2.93]
[1755482799098,2.94,186.3,186.28,2.93]
[1755482799501,2.94,186.31,186.22,2.93]
[1755482800000,5.3643,186.3,186.25,5.3655]
[1755482800199,2.94,186.31,186.19,140.0]
[1755482800395,2.94,186.31,186.23,2.93]
[1755482800598,25.39,186.32,186.28,5.3646]
[1755482800795,28.33,186.32,186.3,2.93]
[1755482800999,25.39,186.32,186.31,2.93]
[1755482801503,28.33,186.32,186.31,2.93]
[1755482801705,28.33,186.32,186.26,2.93]
[1755482801904,25.39,186.32,186.26,2.93]
[1755482802103,2.94,186.3,186.27,2.93]
[1755482802402,2.94,186.29,186.27,2.93]
[1755482802805,2.94,186.31,186.2,2.93]
[1755482804101,2.94,186.33,186.2,2.93]
[1755482805303,2.94,186.33,186.24,2.93]
[1755482805507,19.67,186.32,186.28,5.3646]
[1755482805699,2.94,186.31,186.29,2.93]
[1755482806207,19.67,186.32,186.28,5.3646]
[1755482806409,2.94,186.3,186.28,8.2946]
[1755482806707,2.94,186.3,186.29,2.93]
[1755482807011,19.67,186.32,186.3,2.93]
[1755482807012,22.61,186.32,186.3,2.93]
[1755482807507,19.67,186.32,186.3,2.93]
[1755482807712,19.67,186.32,186.23,9.20645656]
[1755482807713,19.67,186.32,186.24,2.93]
[1755482807902,2.94,186.36,186.28,2.88]
[1755482808509,5.3623,186.37,186.32,5.3636]
[1755482808810,360.56,186.45,186.33,2.88]
[1755482808811,2.9,186.35,186.33,2.88]
[1755482810001,2.9,186.37,186.34,2.88]
[1755482810206,2.9,186.44,186.31,9.20645656]
[1755482810413,4.05494259,186.43,186.32,2.88]
[1755482810716,2.9,186.45,186.32,2.88]
[1755482811101,2.9,186.43,186.32,2.88]
[1755482811308,2.9,186.41,186.23,9.20645656]
[1755482811505,2.9,186.41,186.3,2.88]
[1755482811706,5.3623,186.37,186.32,5.3636]
[1755482812013,2.9,186.35,186.33,2.88]
[1755482812213,2.9,186.45,186.24,2.88]
[1755482812410,2.9,186.35,186.24,139.46]
[1755482812610,2.9,186.45,186.25,2.88]
[1755482812810,4.04796835,186.44,186.27,9.20645656]
[1755482813115,2.9,186.42,186.28,2.88]
[1755482813414,5.3619,186.39,186.33,5.3632]
[1755482813613,2.9,186.42,186.33,8.2432]
[1755482813814,2.9,186.4,186.33,8.2432]
[1755482814015,5.3622,186.38,186.33,5.3632]
[1755482814215,2.9,186.37,186.34,2.88]
[1755482814409,2.9,186.36,186.34,2.88]
[1755482814604,5.3622,186.38,186.35,2.88]
[1755482814809,2.9,186.37,186.35,2.88]
[1755482815708,2.9,186.37,186.27,9.20645656]
[1755482815909,2.9,186.37,186.36,2.88]
[1755482816510,2.9,186.37,186.34,2.88]
[1755482816711,2.9,186.37,186.35,2.88]
[1755482817815,5.3623,186.37,186.28,2.88]
[1755482818205,2.9,186.36,186.32,5.3635]
[1755482818413,25.03,186.46,186.33,2.88]
[1755482818614,2.9,186.35,186.33,2.88]
[1755482818815,2.9,186.35,186.34,2.88]
[1755482819714,2.9,186.35,186.31,5.364]
[1755482819908,2.9,186.44,186.3,2.88]
[1755482820112,2.9,186.42,186.28,2.88]
[1755482820317,2.9,186.4,186.28,2.88]
[1755482820510,2.9,186.38,186.28,2.88]
[1755482820913,2.9,186.36,186.26,2.88]
[1755482821112,2.9,186.34,186.26,2.88]
[1755482821819,5.3649,186.28,186.26,2.88]
[1755482822119,2.9,186.39,186.22,2.88]
[1755482822321,15.00127113,186.4,186.23,5.3663]
[1755482822322,2.9,186.33,186.23,5.3663]
[1755482822618,2.9,186.33,186.24,2.88]
[1755482823420,2.9,186.35,186.24,2.88]
[1755482824118,2.9,186.35,186.28,2.88]
[1755482824621,8.2629,186.35,186.28,2.88]
[1755482825219,2.9,186.34,186.28,2.88]
[1755482825423,2.9,186.34,186.28,5.3646]
[1755482825626,2.9,186.34,186.28,2.88]
[1755482826415,2.9,186.3,186.27,2.88]
[1755482826616,2.9,186.3,186.28,2.88]
[1755482827012,2.9,186.29,186.25,5.3657]
[1755482827216,2.9,186.29,186.28,2.88]
[1755482827923,2.9,186.38,186.21,2.88]
[1755482828118,2.9,186.31,186.27,2.88]
[1755482828318,5.79481457,186.39,186.28,2.88]
[1755482828523,2.9,186.29,186.28,2.88]
[1755482829413,2.9,186.31,186.28,2.88]
[1755482829616,2.9,186.3,186.29,2.88]
[1755482830618,0.54,186.3,186.21,2.88]
[1755482830823,2.9,186.29,186.21,2.88]
[1755482831420,2.9,186.26,186.21,2.88]
[1755482831831,5.3655,186.26,186.22,2.88]
[1755482832014,5.3655,186.26,186.17,360.56]
[1755482832015,15.00127113,186.36,186.18,2.88]
[1755482832219,2.9,186.26,186.18,2.88]
[1755482833029,2.9,186.24,186.22,2.88]
[1755482833527,2.9,186.24,186.2,5.3671]
[1755482833719,8.2656,186.26,186.23,2.88]
[1755482833914,2.9,186.25,186.24,2.88]
[1755482834120,8.2657,186.25,186.19,2.88]
[1755482834318,5.79481457,186.35,186.21,2.88]
[1755482834619,2.9,186.25,186.23,2.88]
[1755482834929,2.9,186.25,186.24,2.88]
[1755482835225,2.9,186.24,186.22,2.88]
[1755482835421,5.3655,186.26,186.23,2.88]
[1755482835624,2.9,186.25,186.24,2.88]
[1755482835823,8.2657,186.25,186.24,2.88]
[1755482836125,2.9,186.24,186.23,2.88]
[1755482836326,2.9,186.31,186.05,371.85429831]
[1755482836526,2.9,186.28,186.1,148.58645656]
[1755482836717,5.79481457,186.32,186.11,2.88]
[1755482836718,2.9,186.26,186.11,2.88]
[1755482837027,2.9,186.26,186.15,2.88]
[1755482837221,4.09294543,186.25,186.15,2.88]
[1755482837426,2.9,186.24,186.15,2.88]
[1755482838029,2.86,186.22,186.15,2.88]
[1755482838234,2.86,186.22,186.11,3.04]
[1755482838721,2.86,186.24,186.15,3.04]
[1755482838921,2.86,186.27,186.15,3.04]
[1755482839524,4.09531367,186.26,186.16,5.3683]
[1755482839725,5.79481457,186.35,186.17,3.04]
[1755482839921,2.86,186.29,186.19,3.04]
[1755482840124,5.79481457,186.41,186.23,3.04]
[1755482840325,2.86,186.39,186.27,3.04]
[1755482840623,25.03,186.46,186.33,3.04]
[1755482840824,2.86,186.44,186.33,3.04]
[1755482841131,2.86,186.44,186.35,9.20645656]
[1755482841328,25.03,186.46,186.36,3.04]
[1755482841527,25.03,186.46,186.36,9.20645656]
[1755482841724,25.03,186.46,186.37,3.04]
[1755482841923,27.89,186.46,186.37,3.04]
[1755482842126,27.89,186.46,186.41,5.3608]
[1755482842321,27.89,186.46,186.43,3.04]
[1755482842322,2.86,186.45,186.43,3.04]
[1755482842522,25.03,186.46,186.36,9.20645656]
[1755482842722,2.86,186.51,186.41,3.04]
[1755482842931,2.86,186.57,186.37,139.36]
[1755482843128,5.3585,186.5,186.42,5.3608]
[1755482843332,2.86,186.49,186.43,3.04]
[1755482844436,2.86,186.57,186.43,3.04]
[1755482844633,360.62,186.62,186.44,3.04]
[1755482844634,2.86,186.55,186.44,3.04]
[1755482844824,21.09,186.56,186.48,3.04]
[1755482845026,21.09,186.56,186.52,3.04]
[1755482845234,2.86,186.63,186.57,3.04]
[1755482845730,2.86,186.63,186.55,9.20645656]
[1755482845731,2.86,186.63,186.59,5.3559]
[1755482846028,189.09127254,186.72,186.55,9.20645656]
[1755482846029,2.86,186.66,186.62,3.04]
[1755482846233,2.86,186.66,186.63,3.04]
[1755482846535,2.86,186.67,186.62,3.04]
[1755482846740,189.09127254,186.72,186.57,9.20645656]
[1755482847033,2.86,186.65,186.62,3.04]
[1755482847236,189.09127254,186.72,186.63,3.04]
[1755482847423,2.86,186.65,186.58,3.04]
[1755482847831,189.09127254,186.72,186.58,3.04]
[1755482847832,2.86,186.71,186.58,3.04]
[1755482848527,2.86,186.7,186.58,3.04]
[1755482848837,2.86,186.7,186.62,3.04]
[1755482849037,2.86,186.7,186.64,5.3544]
[1755482849238,2.86,186.73,186.62,3.04]
[1755482849532,15.22,186.75,186.69,5.3528]
[1755482849738,15.22,186.75,186.66,3.04]
[1755482850738,15.22,186.75,186.72,3.04]
[1755482851035,2.86,186.75,186.66,9.20645656]
[1755482851335,5.79481457,186.88,186.67,3.04]
[1755482851336,9.20645656,186.83,186.67,3.04]
[1755482851530,9.20645656,186.79,186.6,3.04]
[1755482851836,2.86,186.66,186.6,3.04]
[1755482852228,2.86,186.69,186.6,3.04]
[1755482852938,2.86,186.74,186.67,3.04]
[1755482853140,15.22,186.73,186.67,3.04]
[1755482853435,2.86,186.72,186.67,3.04]
[1755482853739,2.86,186.72,186.64,3.04]
[1755482854233,4.02980458,186.71,186.58,3.04]
[1755482854439,2.86,186.69,186.58,3.04]
[1755482854637,2.86,186.72,186.62,9.20645656]
[1755482854837,2.86,186.72,186.63,3.04]
[1755482856035,2.86,186.72,186.59,140.06]
[1755482856036,8.2137,186.67,186.6,3.04]
[1755482856232,2.86,186.67,186.6,3.04]
[1755482857036,5.3548,186.63,186.57,363.32]
[1755482857237,2.86,186.59,186.57,360.28]
[1755482857434,2.86,186.62,186.17,26.839]
[1755482857637,2.86,186.68,186.49,3.04]
[1755482857839,2.86,186.64,186.49,3.04]
[1755482858039,2.86,186.62,186.49,3.04]
[1755482858245,2.86,186.6,186.47,3.04]
[1755482858435,16.1,186.68,186.47,3.04]
[1755482858436,2.86,186.58,186.47,3.04]
[1755482858642,2.86,186.58,186.51,5.3582]
[1755482858842,2.86,186.58,186.51,3.04]
[1755482860240,2.86,186.58,186.46,3.04]
[1755482860441,4.01223943,186.57,186.43,3.04]
[1755482860651,2.86,186.55,186.43,3.04]
[1755482860847,2.86,186.53,186.43,3.04]
[1755482861036,2.86,186.45,186.39,3.04]
[1755482861450,2.86,186.56,186.39,3.04]
[1755482861748,2.86,186.49,186.39,3.04]
[1755482862140,2.86,186.59,186.39,3.04]
[1755482862344,2.86,186.57,186.39,3.04]
[1755482862544,2.86,186.55,186.39,3.04]
[1755482862747,2.86,186.53,186.44,3.04]
[1755482863641,2.86,186.56,186.44,3.04]
[1755482864550,2.86,186.56,186.5,3.04]
[1755482865553,115.77721655,186.64,186.5,3.04]
[1755482865554,2.86,186.63,186.5,3.04]
[1755482866151,2.86,186.61,186.5,3.04]
[1755482866544,2.86,186.59,186.41,3.04]
[1755482866739,2.86,186.57,186.43,3.04]
[1755482867349,2.86,186.55,186.45,3.04]
[1755482867551,124.53011386,186.64,186.39,3.04]
[1755482867552,4.01529198,186.54,186.39,3.04]
[1755482867739,2.86,186.53,186.39,3.04]
[1755482867941,3.1,186.51,186.39,3.04]
[1755482868851,3.1,186.51,186.38,500.7]
[1755482868852,5.3596,186.47,186.38,140.74]
[1755482869047,4.01279108,186.5,186.38,143.58]
[1755482869048,3.1,186.46,186.38,143.58]
[1755482869948,3.1,186.46,186.38,140.74]
[1755482870651,3.1,186.46,186.35,2.84]
[1755482870955,3.1,186.44,186.35,2.84]
[1755482873160,8.4604,186.44,186.35,8.2026]
[1755482873352,3.1,186.43,186.35,2.84]
[1755482873760,3.1,186.43,186.36,5.3624]
[1755482874054,3.1,186.43,186.35,2.84]
[1755482874652,3.1,186.43,186.39,5.3615]
[1755482874860,3.1,186.43,186.4,2.84]
[1755482875050,3.1,186.43,186.41,2.84]
[1755482875253,3.1,186.49,186.41,2.84]
[1755482876253,3.1,186.49,186.37,2.84]
[1755482876560,3.1,186.47,186.37,2.84]
[1755482877366,3.1,186.47,186.4,5.3614]
[1755482878864,8.4594,186.47,186.39,8.2016]
[1755482879255,15.24,186.5,186.39,8.2016]
[1755482879256,3.1,186.46,186.39,2.84]
[1755482880070,5.36,186.45,186.39,2.84]
[1755482880266,3.1,186.46,186.39,2.84]
[1755482880466,3.1,186.44,186.3,2.84]
[1755482880662,3.1,186.38,186.3,2.84]
[1755482881669,3.1,186.42,186.35,2.84]
[1755482881966,4.00870123,186.41,186.35,2.84]
[1755482882170,4.00870123,186.4,186.28,360.14]
[1755482882366,3.1,186.38,186.32,2.84]
[1755482882772,3.1,186.41,186.32,2.84]
[1755482882975,4.01210976,186.4,186.32,2.84]
[1755482883162,4.01210976,186.39,186.32,2.84]
[1755482883362,3.1,186.41,186.36,2.84]
[1755482883561,7.11873377,186.4,186.37,2.84]
[1755482883764,4.01873377,186.39,186.37,2.84]
[1755482883967,3.1,186.4,186.37,2.84]
[1755482884272,3.1,186.43,186.29,2.84]
[1755482884462,4.02332245,186.42,186.28,360.14]
[1755482884667,3.1,186.43,186.4,2.84]
[1755482884971,3.1,186.46,186.34,2.84]
[1755482885161,4.02397501,186.45,186.34,2.84]
[1755482885362,3.1,186.46,186.43,5.3605]
[1755482885678,15.24,186.5,186.34,2.84]
[1755482885679,15.24,186.5,186.42,2.84]
[1755482885972,4.02547709,186.49,186.42,2.84]
[1755482886169,15.24,186.5,186.42,2.84]
[1755482886371,4.02517896,186.49,186.42,2.84]
[1755482886570,15.24,186.5,186.42,2.84]
[1755482886972,15.24,186.5,186.47,5.3591]
[1755482887173,15.24,186.5,186.42,2.84]
[1755482887573,18.34,186.5,186.47,2.84]
[1755482888078,7.12386111,186.49,186.42,2.84]
[1755482888278,3.1,186.49,186.42,2.84]
[1755482888774,15.24,186.5,186.45,5.3597]
[1755482888977,15.24,186.5,186.41,140.14]
[1755482889178,15.24,186.5,186.48,2.84]
[1755482889380,15.24,186.5,186.49,2.84]
[1755482890376,15.24,186.5,186.49,8.1988]
[1755482890974,15.24,186.5,186.49,2.84]
[1755482891685,15.24,186.5,186.4,2.84]
[1755482891979,15.24,186.5,186.42,2.84]
[1755482892875,3.1,186.61,186.45,2.84]
[1755482893076,8.09102808,186.6,186.45,2.84]
[1755482893270,4.02801659,186.59,186.45,2.84]
[1755482893479,3.1,186.61,186.45,2.84]
[1755482894477,3.1,186.63,186.55,2.84]
[1755482894675,3.1,186.61,186.51,2.84]
[1755482894879,5.3562,186.58,186.51,5.3582]
[1755482895081,3.1,186.57,186.5,139.86]
[1755482895374,3.1,186.57,186.51,2.84]
[1755482895977,3.1,186.6,186.51,2.84]
[1755482896179,3.1,186.58,186.51,2.84]
[1755482896677,3.1,186.63,186.51,2.84]
[1755482896984,3.1,186.61,186.51,2.84]
[1755482897279,118.87721655,186.64,186.52,2.84]
[1755482897585,500.1,186.75,186.5,139.86]
[1755482897586,5.79481457,186.71,186.5,139.86]
[1755482897782,8.10978165,186.7,186.62,2.84]
[1755482898082,3.09,186.65,186.62,2.84]
[1755482898275,3.09,186.71,186.51,2.81]
[1755482898475,3.09,186.69,186.51,2.81]
[1755482898677,7.13057294,186.68,186.51,2.81]
[1755482898983,4.04057294,186.67,186.54,15.04767934]
[1755482899274,3.09,186.64,186.57,2.81]
[1755482899480,5.79481457,186.72,186.54,2.81]
[1755482899481,4.03976187,186.63,186.54,2.81]
[1755482899676,3.09,186.61,186.54,2.81]
[1755482899882,5.3559,186.6,186.54,2.81]
[1755482900182,3.09,186.56,186.53,139.64]
[1755482900479,5.3559,186.59,186.53,142.45]
[1755482900680,5.79481457,186.67,186.53,142.45]
[1755482900879,3.09,186.57,186.53,139.64]
[1755482901083,3.09,186.65,186.54,2.81]
[1755482901379,3.09,186.63,186.57,2.81]
[1755482901570,4.08001454,186.62,186.48,139.62]
[1755482901775,3.09,186.6,186.49,2.81]
[1755482901972,3.8791725,186.59,186.49,2.81]
[1755482902177,6.96798077,186.58,186.48,139.62]
[1755482902476,5.79481457,186.65,186.49,2.81]
[1755482902677,3.09,186.63,186.49,2.81]
[1755482902879,3.09,186.61,186.49,2.81]
[1755482903082,3.09,186.59,186.49,2.81]
[1755482903773,3.09,186.62,186.49,2.81]
[1755482904578,3.09,186.62,186.56,5.3567]
[1755482904975,3.09,186.62,186.55,2.81]
[1755482905176,3.09,186.72,186.59,2.81]
[1755482905371,3.09,186.7,186.59,2.81]
[1755482905577,5.3537,186.67,186.6,5.3556]
[1755482905879,3.09,186.66,186.59,2.81]
[1755482906680,5.3556,186.61,186.54,5.3573]
[1755482906874,3.09,186.64,186.45,2.81]
[1755482907080,3.09,186.62,186.46,2.81]
[1755482907679,3.09,186.6,186.46,2.81]
[1755482907883,3.09,186.6,186.53,8.1676]
[1755482908083,3.09,186.6,186.53,2.81]
[1755482909479,3.09,186.58,186.53,2.81]
[1755482909679,3.09,186.61,186.46,2.81]
[1755482909985,8.4456,186.61,186.54,2.81]
[1755482910582,3.09,186.61,186.54,2.81]
[1755482911287,3.09,186.72,186.59,2.81]
[1755482911478,3.09,186.7,186.59,2.81]
[1755482912476,3.09,186.62,186.56,2.81]
[1755482912883,3.09,186.61,186.57,2.81]
[1755482913079,3.09,186.7,186.48,2.81]
[1755482913284,360.24,186.75,186.48,2.81]
[1755482913285,3.09,186.68,186.48,2.81]
[1755482913487,16.1,186.65,186.43,2.81]
[1755482913781,3.09,186.62,186.43,2.81]
[1755482913987,3.09,186.6,186.48,2.81]
[1755482914583,3.09,186.52,186.48,2.81]
[1755482914790,16.1,186.65,186.48,2.81]
[1755482914976,16.1,186.65,186.47,5.3593]
[1755482914977,3.09,186.6,186.47,5.3593]
[1755482915181,3.09,186.58,186.46,2.81]
[1755482915584,3.09,186.5,186.46,2.81]
[1755482915783,5.3583,186.51,186.38,139.32]
[1755482915988,5.358,186.52,186.47,2.81]
[1755482916185,3.09,186.5,186.47,2.81]
[1755482916988,3.09,186.5,186.47,8.1692]
[1755482917183,16.1,186.63,186.48,2.81]
[1755482917379,3.09,186.61,186.42,2.81]
[1755482917589,3.09,186.59,186.42,2.81]
[1755482918097,3.09,186.54,186.48,2.81]
[1755482918489,10.7098,186.63,186.44,5.36]
[1755482918692,16.1,186.61,186.44,5.36]
[1755482918992,367.85679226,186.62,186.31,15.04767934]
[1755482918993,16.1,186.57,186.31,375.10767934]
[1755482919194,3.09,186.54,186.39,2.81]
[1755482919487,19.19,186.52,186.36,5.3625]
[1755482919680,3.09,186.5,186.32,2.81]
[1755482919880,3.09,186.48,186.32,2.81]
[1755482920079,139.38,186.53,186.32,2.81]
[1755482920080,3.09,186.53,186.32,2.81]
[1755482920287,15.04767934,186.54,186.32,2.81]
[1755482920288,3.09,186.51,186.32,2.81]
[1755482920594,19.97804681,186.52,186.36,5.3623]
[1755482920595,5.361,186.42,186.36,5.3623]
[1755482920790,3.09,186.41,186.27,139.38]
[1755482920983,3.09,186.41,186.28,2.81]
[1755482921187,3.09,186.41,186.33,2.81]
[1755482921787,5.3611,186.42,186.36,5.3623]
[1755482921983,16.1,186.53,186.27,139.38]
[1755482921984,3.09,186.4,186.27,139.38]
[1755482922191,3.09,186.4,186.37,8.1721]
[1755482922388,3.09,186.42,186.38,2.81]
[1755482922583,3.09,186.42,186.39,2.81]
[1755482922896,3.09,186.47,186.31,2.81]
[1755482923091,3.09,186.45,186.31,2.81]
[1755482923487,3.87348097,186.44,186.31,2.81]
[1755482923688,34.23767934,186.46,186.31,2.81]
[1755482923994,3.09,186.34,186.18,2.81]
[1755482924397,8.4532,186.34,186.23,2.81]
[1755482924895,3.09,186.34,186.23,2.81]
[1755482925095,15.04767934,186.46,186.23,2.81]
[1755482925294,3.09,186.44,186.23,2.81]
[1755482925497,3.09,186.42,186.23,2.81]
[1755482925685,15.04767934,186.46,186.23,2.81]
[1755482925686,8.4521,186.38,186.23,2.81]
[1755482925887,3.09,186.38,186.24,139.56]
[1755482926088,5.3615,186.4,186.25,2.81]
[1755482926691,8.4512,186.41,186.34,5.3629]
[1755482926888,3.09,186.41,186.35,2.81]
[1755482927200,3.09,186.41,186.36,5.3625]
[1755482927392,3.09,186.41,186.38,2.81]
[1755482927588,360.2,186.49,186.36,5.3625]
[1755482927793,2.98,186.41,186.25,2.81]
[1755482928402,2.98,186.38,186.33,5.3633]
[1755482928696,16.1,186.44,186.25,3.04]
[1755482928900,2.98,186.42,186.28,3.04]
[1755482929401,5.3611,186.41,186.34,5.3629]
[1755482929701,2.98,186.42,186.35,3.04]
[1755482930000,2.98,186.42,186.37,5.3622]
[1755482930301,2.98,186.42,186.39,3.04]
[1755482930799,5.3605,186.44,186.28,139.68]
[1755482930800,2.98,186.48,186.29,3.04]
[1755482931000,2.98,186.46,186.36,8.4023]
[1755482931203,2.98,186.46,186.36,3.04]
[1755482931590,2.98,186.43,186.22,3.04]
[1755482931801,2.98,186.41,186.22,3.04]
[1755482932102,2.98,186.27,186.23,3.04]
[1755482932293,2.98,186.25,186.23,3.04]
[1755482932497,2.98,186.25,186.2,3.04]
[1755482932799,2.98,186.24,186.21,3.04]
[1755482932993,31.14767934,186.39,186.11,502.12]
[1755482932994,8.3463,186.23,186.19,3.04]
[1755482933401,2.98,186.22,186.18,3.04]
[1755482933596,5.3669,186.21,186.18,3.04]
[1755482933796,2.98,186.21,186.18,3.04]
[1755482934501,5.3668,186.22,186.12,3.04]
[1755482934803,16.1,186.3,186.1,3.04]
[1755482934994,2.98,186.28,186.1,3.04]
[1755482935194,2.98,186.28,186.14,5.3689]
[1755482935397,2.98,186.28,186.15,3.04]
[1755482935704,2.98,186.24,186.15,3.04]
[1755482936291,2.98,186.29,186.1,3.04]
[1755482936790,2.98,186.29,186.16,5.3683]
[1755482936991,2.98,186.29,186.16,8.4083]
[1755482937296,2.98,186.29,186.16,3.04]
[1755482937498,2.98,186.21,186.04,203.78]
[1755482937798,2.98,186.21,186.18,3.04]
[1755482937999,2.98,186.29,186.1,3.04]
[1755482938497,5.3665,186.23,186.17,5.3678]
[1755482938704,8.3465,186.23,186.17,8.4078]
[1755482939005,2.98,186.23,186.17,3.04]
[1755482939296,2.98,186.34,186.17,3.04]
[1755482939894,2.98,186.34,186.21,5.3666]